[Event "Turkish Club Cup 2019"]
[Site "Konya"]
[Date "2019.07.17"]
[Round "3"]
[White "Kelemci, Mehmet Gorkem"]
[Black "Sancar, Alperen"]
[Result "0-1"]
[ECO "B13"]
[WhiteElo "1565"]
[BlackElo "1479"]
[Annotator "NA"]
[PlyCount "120"]
[EventDate "2019.07.16"]
[EventType "team-tourn"]
[EventCountry "TUR"]
[SourceTitle "playchess.com"]
[Source "ChessBase"]
[SourceQuality "1"]
[TimeControl "5400+30"]

1. e4 c6 2. d4 d5 3. exd5 cxd5 4. c4 Nf6 5. Nf3 Bg4 6. cxd5 Nxd5 7. Qb3 Qc7 8. Nbd2 Bxf3 9. Nxf3 e6 10. Bd2 a6 11. Bc4 Nf6 12. O-O Bd6 13. Bb4 O-O 14. Rac1 Nc6 15. Bc3 b5 16. Bxe6 fxe6 17. Qxe6+ Kh8 18. d5 Nd8 19. Qf5 Qd7 20. Qd3 Bf4 21. Rcd1 Nb7 22. Nh4 Nd6 23. Bb4 a5 24. Bxd6 Bxd6 25. Nf5 Ng4 26. Nxd6 Qxd6 27. Qg3 Qxg3 28. hxg3 Rad8 29. d6 Rf5 30. Rfe1 Nxf2 31. Rf1 Nxd1 32. Rxf5 Nxb2 33. Rxb5 Nc4 34. d7 Kg8 35. Rc5 Nb6 36. Rxa5 Rxd7 37. Rb5 Nd5 38. Kf2 Nc3 39. Rb8+ Kf7 40. a3 Rd2+ 41. Kf3 Rd3+ 42. Kg4 Rd4+ 43. Kf3 h6 44. Rb7+ Kg6 45. Rb6+ Kf5 46. Rb7 g6 47. Rf7+ Ke6 48. Rg7 Kf6 49. Rc7 Rd3+ 50. Kg4 h5+ 51. Kh4 Rd4+ 52. Kh3 Na4 53. Rc6+ Kf5 54. Ra6 Nc3 55. Ra5+ {[%emt 1:56:36]} Rd5 {[%emt 1:55:03]} 56. Ra8 {[%emt 0:00:30]} Rd6 {[%emt 0:00:30]} 57. Rc8 {[%emt 0:00:30]} Ne4 {[%emt 0:00:30]} 58. Rf8+ {[%emt 0:00:30]} Kg5 {[%emt 0:00:30]} 59. Rf3 {[%emt 0:00:25]} Kh6 {[%emt 0:00:42]} 60. Re3 {[%emt 0:00:33]} Nf2+ {[%emt 0:00:12]} 0-1

[Event "Turkish Club Cup 2019"]
[Site "Konya"]
[Date "2019.07.17"]
[Round "3"]
[White "Acar, Eren"]
[Black "Ultanir, Guray"]
[Result "0-1"]
[ECO "B46"]
[WhiteElo "1539"]
[BlackElo "1601"]
[Annotator "NA"]
[PlyCount "54"]
[EventDate "2019.07.16"]
[EventType "team-tourn"]
[EventCountry "TUR"]
[SourceTitle "playchess.com"]
[Source "ChessBase"]
[SourceQuality "1"]
[TimeControl "5400+30"]

1. a3 {[%emt 0:00:30]} a6 {[%emt 0:00:30]} 2. e4 {[%emt 0:00:30]} c5 {[%emt 0:00:30]} 3. Nf3 {[%emt 0:00:00]} e6 {[%emt 0:00:30]} 4. d4 {[%emt 0:00:00]} cxd4 {[%emt 0:00:00]} 5. Nxd4 {[%emt 0:00:30]} Qc7 {[%emt 0:01:00]} 6. Nc3 {[%emt 0:00:00]} Nc6 {[%emt 0:00:30]} 7. Nxc6 {[%emt 0:01:00]} bxc6 {[%emt 0:00:30]} 8. Bd3 {[%emt 0:00:30]} Nf6 {[%emt 0:00:30]} 9. O-O {[%emt 0:00:00]} Be7 {[%emt 0:00:30]} 10. f4 {[%emt 0:04:00]} O-O {[%emt 0:03:30]} 11. e5 {[%emt 0:07:30]} Nd5 {[%emt 0:00:30]} 12. Ne4 {[%emt 0:00:30]} f5 {[%emt 0:00:30]} 13. exf6 {[%emt 0:00:30]} Nxf6 {[%emt 0:00:30]} 14. Be3 {[%emt 0:04:30]} Nxe4 {[%emt 0:01:30]} 15. Bxe4 {[%emt 0:00:30]} d5 {[%emt 0:00:30]} 16. Bd3 {[%emt 0:02:30]} e5 {[%emt 0:02:30]} 17. fxe5 {[%emt 0:03:30]} Qxe5 {[%emt 0:01:30]} 18. Rxf8+ {[%emt 0:01:30]} Bxf8 {[%emt 0:00:30]} 19. Qf3 {[%emt 0:00:30]} Bd6 {[%emt 0:00:30]} 20. g3 {[%emt 0:02:30]} Bh3 {[%emt 0:00:30]} 21. c3 {[%emt 0:06:30]} Rf8 {[%emt 0:02:30]} 22. Qe2 {[%emt 0:46:41]} Bg4 {[%emt 0:30:30]} 23. Qd2 {[%emt 0:00:30]} Rf3 {[%emt 0:00:30]} 24. Re1 {[%emt 0:01:39]} Rxg3+ {[%emt 0:03:30]} 25. hxg3 {[%emt 0:00:30]} Qxg3+ {[%emt 0:00:30]} 26. Kf1 {[%emt 0:00:30]} Bh3+ {[%emt 0:00:30]} 27. Ke2 {[%emt 0:00:30]} Qg4+ {[%emt 0:00:30]} 0-1

[Event "Turkish Club Cup 2019"]
[Site "Konya"]
[Date "2019.07.17"]
[Round "3"]
[White "Koc, Azra Ece"]
[Black "Bicaklioglu, Dilara"]
[Result "1-0"]
[ECO "D00"]
[WhiteElo "1527"]
[BlackElo "1305"]
[Annotator "NA"]
[PlyCount "112"]
[EventDate "2019.07.16"]
[EventType "team-tourn"]
[EventCountry "TUR"]
[SourceTitle "playchess.com"]
[Source "ChessBase"]
[SourceQuality "1"]
[TimeControl "5400+30"]

1. d4 d5 2. Bf4 Nf6 3. e3 c5 4. c3 Nc6 5. Nd2 Bf5 6. Qb3 Qc8 7. h3 e6 8. Ngf3 Be7 9. Be2 h6 10. Rc1 c4 11. Qd1 b5 12. Ne5 O-O 13. Ng4 b4 14. Nxf6+ Bxf6 15. e4 Bh7 16. f3 a5 17. Qa4 Qb7 18. h4 Rfc8 19. e5 Be7 20. Nf1 Qb6 21. Be3 Na7 22. g4 Nb5 23. Bd2 bxc3 24. bxc3 Ba3 25. Qd1 Bb2 26. g5 hxg5 27. hxg5 Bxc1 28. Qxc1 Nc7 29. Kf2 Qb1 30. Qa3 Nb5 31. Qe7 Qxa2 32. Rxh7 Kxh7 33. Qxf7 Rc7 34. Qh5+ Kg8 35. g6 Rac8 36. Qh7+ Kf8 37. Qh8+ Ke7 38. Qxg7+ Ke8 39. Qg8+ Kd7 40. Qf7+ Kc6 41. Qxe6+ Kb7 42. Qxd5+ Kb8 43. Qxb5+ Rb7 44. Qd5 a4 45. Qd6+ Ka7 46. d5 a3 47. Be3+ Ka8 48. Qa6+ Kb8 49. Nd2 Qb2 50. e6 a2 51. Bf4+ Rbc7 52. e7 a1=Q 53. Bxc7+ Kxc7 54. Qxc8+ Kxc8 55. e8=Q+ Kb7 56. Qc6+ Ka7 1-0

[Event "Turkish Club Cup 2019"]
[Site "Konya"]
[Date "2019.07.17"]
[Round "3"]
[White "Yilmaz, Kayra"]
[Black "Sayin, Atakan"]
[Result "1-0"]
[ECO "C00"]
[WhiteElo "1512"]
[BlackElo "1925"]
[Annotator "NA"]
[PlyCount "85"]
[EventDate "2019.07.16"]
[EventType "team-tourn"]
[EventCountry "TUR"]
[SourceTitle "playchess.com"]
[Source "ChessBase"]
[SourceQuality "1"]
[TimeControl "5400+30"]

1. e4 e6 2. b3 d5 3. Bb2 dxe4 4. Nc3 Nf6 5. Qe2 Nbd7 6. g4 b6 7. Bg2 Bb7 8. Nxe4 Nd5 9. Nh3 Nb4 {[%emt 0:59:30]} 10. O-O-O {[%emt 0:57:00]} Nc5 {[%emt 0:05:30]} 11. f4 {[%emt 0:11:30]} Bxe4 {[%emt 0:10:54]} 12. Bxe4 {[%emt 0:00:30]} Nxe4 {[%emt 0:01:10]} 13. Qxe4 {[%emt 0:00:00]} Qd5 {[%emt 0:00:10]} 14. Qxd5 {[%emt 0:02:00]} Nxd5 {[%emt 0:01:00]} 15. f5 {[%emt 0:02:30]} h5 {[%emt 0:03:45]} 16. Ng5 {[%emt 0:02:30]} hxg4 {[%emt 0:00:32]} 17. fxe6 {[%emt 0:01:30]} f6 {[%emt 0:00:35]} 18. Ne4 {[%emt 0:05:05]} Nf4 {[%emt 0:04:00]} 19. Rde1 {[%emt 0:01:52]} Nxe6 {[%emt 0:07:34]} 20. Nxf6+ {[%emt 0:01:54]} gxf6 {[%emt 0:02:12]} 21. Rxe6+ {[%emt 0:00:10]} Kd7 {[%emt 0:01:03]} 22. Rxf6 {[%emt 0:00:57]} Bd6 {[%emt 0:01:26]} 23. Rf7+ {[%emt 0:04:29]} Ke6 {[%emt 0:00:22]} 24. Rhf1 {[%emt 0:01:25]} Rhf8 {[%emt 0:01:10]} 25. R1f6+ {[%emt 0:02:18]} Kd5 {[%emt 0:00:04]} 26. c4+ {[%emt 0:00:46]} Kc6 {[%emt 0:00:39]} 27. Rxf8 {[%emt 0:01:44]} Rxf8 {[%emt 0:00:30]} 28. Rxf8 {[%emt 0:00:30]} Bxf8 {[%emt 0:00:00]} 29. Be5 {[%emt 0:00:00]} Kd7 {[%emt 0:00:20]} 30. d4 {[%emt 0:02:19]} c6 {[%emt 0:00:03]} 31. Kd2 {[%emt 0:00:44]} Ke6 {[%emt 0:00:03]} 32. Ke3 {[%emt 0:00:53]} Kf5 {[%emt 0:00:08]} 33. Bb8 {[%emt 0:00:32]} Bh6+ {[%emt 0:00:51]} 34. Kf2 {[%emt 0:00:57]} a6 {[%emt 0:00:44]} 35. Bc7 {[%emt 0:00:23]} b5 {[%emt 0:00:40]} 36. cxb5 {[%emt 0:00:18]} cxb5 {[%emt 0:00:37]} 37. d5 {[%emt 0:00:33]} Ke4 {[%emt 0:02:14]} 38. d6 {[%emt 0:01:23]} Bf4 {[%emt 0:00:22]} 39. Bb8 {[%emt 0:00:52]} Bxd6 {[%emt 0:01:18]} 40. Bxd6 {[%emt 0:00:30]} Kd3 {[%emt 0:00:00]} 41. b4 {[%emt 0:00:14]} Kc2 {[%emt 0:00:02]} 42. Kg3 {[%emt 0:00:30]} Kb2 {[%emt 0:00:00]} 43. Kxg4 {[%emt 0:00:00]} 1-0

[Event "Turkish Club Cup 2019"]
[Site "Konya"]
[Date "2019.07.17"]
[Round "3"]
[White "Koc, Bugra Ege"]
[Black "Kaptan, Emre Akin"]
[Result "0-1"]
[ECO "E17"]
[WhiteElo "1493"]
[BlackElo "1883"]
[Annotator "NA"]
[PlyCount "58"]
[EventDate "2019.07.16"]
[EventType "team-tourn"]
[EventCountry "TUR"]
[SourceTitle "playchess.com"]
[Source "ChessBase"]
[SourceQuality "1"]
[TimeControl "5400+30"]

1. d4 {[%emt 0:00:30]} Nf6 {[%emt 0:00:30]} 2. Nf3 {[%emt 0:00:00]} e6 {[%emt 0:00:30]} 3. g3 {[%emt 0:00:00]} d5 {[%emt 0:00:30]} 4. Bg2 {[%emt 0:00:30]} Be7 {[%emt 0:00:00]} 5. O-O {[%emt 0:00:30]} O-O {[%emt 0:00:00]} 6. c4 {[%emt 0:00:00]} b6 {[%emt 0:00:30]} 7. Nc3 {[%emt 0:02:00]} Bb7 {[%emt 0:00:00]} 8. cxd5 {[%emt 0:01:30]} exd5 {[%emt 0:00:00]} 9. Qc2 {[%emt 0:01:30]} Nbd7 {[%emt 0:01:30]} 10. Rd1 {[%emt 0:02:30]} Bd6 {[%emt 0:05:30]} 11. b3 {[%emt 0:08:30]} Re8 {[%emt 0:01:30]} 12. Bb2 {[%emt 0:01:30]} Qe7 {[%emt 0:04:30]} 13. e3 {[%emt 0:05:30]} a6 {[%emt 0:01:30]} 14. Rac1 {[%emt 0:02:30]} Rac8 {[%emt 0:01:30]} 15. Qb1 {[%emt 0:05:30]} Ne4 {[%emt 0:05:30]} 16. Nxe4 {[%emt 0:23:30]} dxe4 {[%emt 0:00:30]} 17. Nd2 {[%emt 0:00:30]} b5 {[%emt 0:00:00]} 18. Qa1 {[%emt 0:03:30]} f5 {[%emt 0:00:00]} 19. Nb1 {[%emt 0:02:30]} Nf6 {[%emt 0:02:30]} 20. Nc3 {[%emt 0:02:30]} Nd5 {[%emt 0:00:30]} 21. Nxd5 {[%emt 0:03:30]} Bxd5 {[%emt 0:00:30]} 22. Qb1 {[%emt 0:00:30]} g5 {[%emt 0:00:00]} 23. Bh3 {[%emt 0:07:30]} Rf8 {[%emt 0:00:00]} 24. Qc2 {[%emt 0:02:30]} Rf6 {[%emt 0:03:30]} 25. Qe2 {[%emt 0:03:45]} Qf7 {[%emt 0:03:30]} 26. Bg2 {[%emt 0:13:23]} Rf8 {[%emt 0:01:30]} 27. Rf1 {[%emt 0:02:30]} Rh6 {[%emt 0:08:30]} 28. f3 {[%emt 0:01:47]} Qh5 {[%emt 0:00:00]} 29. Rfd1 {[%emt 0:03:10]} exf3 {[%emt 0:00:00]} 0-1

[Event "Turkish Club Cup 2019"]
[Site "Konya"]
[Date "2019.07.17"]
[Round "3"]
[White "Koyuncu, Haticesu"]
[Black "Sen, Nehir"]
[Result "1/2-1/2"]
[ECO "D02"]
[WhiteElo "1454"]
[BlackElo "1307"]
[Annotator "NA"]
[PlyCount "83"]
[EventDate "2019.07.16"]
[EventType "team-tourn"]
[EventCountry "TUR"]
[SourceTitle "playchess.com"]
[Source "ChessBase"]
[SourceQuality "1"]
[TimeControl "5400+30"]

1. d4 Nf6 2. Nf3 d5 3. Bf4 g6 4. e3 Bg7 5. Bd3 O-O 6. Nbd2 c5 7. c3 Qb6 8. Qc1 Nc6 9. O-O Nh5 10. Bg5 f6 11. Bh4 cxd4 12. cxd4 Nb4 13. Ne1 Bd7 14. Qd1 Bh6 15. a3 Nxd3 16. Nxd3 Bb5 17. Nf3 Ng7 {[%emt 0:57:30]} 18. Re1 {[%emt 0:54:00]} Bxd3 {[%emt 0:00:30]} 19. Qxd3 {[%emt 0:00:30]} Nf5 {[%emt 0:01:30]} 20. Rec1 {[%emt 0:04:30]} Rac8 {[%emt 0:04:30]} 21. b4 {[%emt 0:04:30]} Nd6 {[%emt 0:01:30]} 22. Nd2 {[%emt 0:01:30]} Qb5 {[%emt 0:02:30]} 23. Qb3 {[%emt 0:14:30]} Nf5 {[%emt 0:06:30]} 24. Nf3 {[%emt 0:01:30]} b6 {[%emt 0:14:29]} 25. Bg3 {[%emt 0:04:44]} Nxg3 {[%emt 0:00:30]} 26. hxg3 {[%emt 0:00:30]} e6 {[%emt 0:00:30]} 27. Rc3 {[%emt 0:00:30]} Rxc3 {[%emt 0:00:30]} 28. Qxc3 {[%emt 0:00:30]} Qc4 {[%emt 0:01:51]} 29. Qxc4 {[%emt 0:03:49]} dxc4 {[%emt 0:00:05]} 30. Nd2 {[%emt 0:07:47]} Rc8 {[%emt 0:03:29]} 31. Ne4 {[%emt 0:01:14]} f5 {[%emt 0:00:26]} 32. Nc3 {[%emt 0:00:43]} Bg7 {[%emt 0:01:44]} 33. f4 {[%emt 0:00:45]} Kf8 {[%emt 0:02:41]} 34. Kf2 {[%emt 0:01:21]} h5 {[%emt 0:00:08]} 35. Ke2 {[%emt 0:00:47]} Bf6 {[%emt 0:00:15]} 36. Kd2 {[%emt 0:01:05]} h4 {[%emt 0:00:33]} 37. gxh4 {[%emt 0:00:38]} Bxh4 {[%emt 0:00:01]} 38. Rh1 {[%emt 0:00:04]} Bf6 {[%emt 0:00:19]} 39. g3 {[%emt 0:00:27]} Kg7 {[%emt 0:00:43]} 40. Kc2 {[%emt 0:01:14]} a6 {[%emt 0:03:21]} 41. Ne2 {[%emt 0:01:13]} b5 {[%emt 0:00:31]} 42. Nc3 {[%emt 0:01:03]} 1/2-1/2

[Event "Turkish Club Cup 2019"]
[Site "Konya"]
[Date "2019.07.17"]
[Round "3"]
[White "Turk, Sarp"]
[Black "Iyiol, Mehmet"]
[Result "0-1"]
[ECO "C11"]
[WhiteElo "1448"]
[BlackElo "1857"]
[Annotator "NA"]
[PlyCount "76"]
[EventDate "2019.07.16"]
[EventType "team-tourn"]
[EventCountry "TUR"]
[SourceTitle "playchess.com"]
[Source "ChessBase"]
[SourceQuality "1"]
[TimeControl "5400+30"]

1. e4 e6 2. Nf3 d5 3. Nc3 Nf6 4. e5 Nfd7 5. d4 c5 6. dxc5 Nc6 7. Bf4 Bxc5 8. Bd3 a6 9. O-O Be7 10. Re1 g5 11. Bg3 h5 12. h3 Rg8 13. Ne2 g4 14. hxg4 hxg4 15. Nfd4 Ndxe5 16. c3 Qb6 17. b3 Bd7 18. Qc2 Rc8 {[%emt 0:46:00]} 19. Rad1 {[%emt 1:06:30]} Rh8 {[%emt 0:05:30]} 20. Nxc6 {[%emt 0:05:30]} Nxc6 {[%emt 0:00:30]} 21. Nf4 {[%emt 0:02:30]} Kf8 {[%emt 0:10:30]} 22. Qe2 {[%emt 0:03:30]} Bf6 {[%emt 0:02:30]} 23. Rc1 {[%emt 0:02:30]} Ne5 {[%emt 0:11:30]} 24. Nxe6+ {[%emt 0:05:17]} Qxe6 {[%emt 0:00:30]} 25. Bxe5 {[%emt 0:00:03]} Bxe5 {[%emt 0:00:30]} 26. Qxe5 {[%emt 0:00:24]} Qh6 {[%emt 0:00:30]} 27. f3 {[%emt 0:12:02]} Re8 {[%emt 0:03:30]} 28. Qg3 {[%emt 0:00:44]} Qb6+ {[%emt 0:01:30]} 29. Qf2 {[%emt 0:00:50]} Rxe1+ {[%emt 0:01:30]} 30. Rxe1 {[%emt 0:00:33]} Rh1+ {[%emt 0:00:30]} 31. Kxh1 {[%emt 0:00:19]} Qxf2 {[%emt 0:00:00]} 32. Rf1 {[%emt 0:00:10]} Qh4+ {[%emt 0:00:00]} 33. Kg1 {[%emt 0:00:30]} g3 {[%emt 0:00:00]} 34. Re1 {[%emt 0:00:03]} Qh2+ {[%emt 0:01:00]} 35. Kf1 {[%emt 0:00:30]} Qh1+ {[%emt 0:00:30]} 36. Ke2 {[%emt 0:00:00]} Qxg2+ {[%emt 0:00:00]} 37. Kd1 {[%emt 0:00:01]} Qxf3+ {[%emt 0:00:00]} 38. Be2 {[%emt 0:00:12]} Qxc3 {[%emt 0:00:00]} 0-1

[Event "Turkish Club Cup 2019"]
[Site "Konya"]
[Date "2019.07.17"]
[Round "3"]
[White "Hekimoglu, Mihriban"]
[Black "Yalcin, Sudenaz"]
[Result "0-1"]
[ECO "A46"]
[WhiteElo "1440"]
[BlackElo "1371"]
[Annotator "NA"]
[PlyCount "110"]
[EventDate "2019.07.16"]
[EventType "team-tourn"]
[EventCountry "TUR"]
[SourceTitle "playchess.com"]
[Source "ChessBase"]
[SourceQuality "1"]
[TimeControl "5400+30"]

1. d4 Nf6 2. Nf3 d6 3. Bg5 g6 4. Bxf6 exf6 5. e4 Bg7 6. Bc4 O-O 7. O-O f5 8. exf5 Bxf5 9. c3 Nc6 10. Nbd2 Qd7 11. Bb3 Rfe8 12. d5 Ne5 13. Nd4 Bd3 14. Re1 Ba6 15. Ba4 b5 16. Bc2 Bb7 17. a4 a6 18. axb5 axb5 19. Rxa8 Rxa8 20. f4 Ng4 21. Nc6 Nf6 22. Re7 Qc8 23. Nf3 Bf8 24. Re1 Qd7 25. Qd4 Nxd5 26. Qxd5 Bxc6 27. Qd3 Bg7 28. Bb3 Bb7 29. Ng5 d5 30. Nf3 c5 31. Bc2 c4 32. Qd2 Qd6 33. Kf1 Qd7 34. Ng5 h6 35. Ne4 Qc7 36. Ng3 Rd8 37. f5 g5 38. Kg1 Be5 39. Nf1 Bc8 40. h3 Qb6+ 41. Kh1 Qf6 42. Ne3 Qd6 43. Ng4 f6 44. Nxh6+ Kg7 45. Ng4 Re8 46. h4 Bf4 47. Qd1 Rh8 48. Kg1 Rxh4 49. Re8 Bh2+ 50. Kf1 Qf4+ 51. Qf3 Qc1+ 52. Bd1 Bf4 53. Rxc8 Rh1+ 54. Kf2 Rxd1 55. Ne3 Rd2+ 0-1

[Event "Turkish Club Cup 2019"]
[Site "Konya"]
[Date "2019.07.17"]
[Round "3"]
[White "Karasakal, Deniz"]
[Black "Cingoz, Isil"]
[Result "1-0"]
[ECO "C01"]
[WhiteElo "1430"]
[BlackElo "1123"]
[Annotator "NA"]
[PlyCount "115"]
[EventDate "2019.07.16"]
[EventType "team-tourn"]
[EventCountry "TUR"]
[SourceTitle "playchess.com"]
[Source "ChessBase"]
[SourceQuality "1"]
[TimeControl "5400+30"]

1. e4 {[%emt 0:00:30]} e6 {[%emt 0:00:30]} 2. d4 {[%emt 0:00:30]} d5 {[%emt 0:00:30]} 3. exd5 {[%emt 0:00:00]} exd5 {[%emt 0:00:00]} 4. Bd3 {[%emt 0:00:00]} c5 {[%emt 0:00:00]} 5. c3 {[%emt 0:00:30]} Nc6 {[%emt 0:00:30]} 6. Ne2 {[%emt 0:00:30]} Nf6 {[%emt 0:00:30]} 7. Bf4 {[%emt 0:01:30]} Nh5 {[%emt 0:02:30]} 8. Be3 {[%emt 0:03:30]} c4 {[%emt 0:02:30]} 9. Bc2 {[%emt 0:00:00]} Bd6 {[%emt 0:00:30]} 10. Ng3 {[%emt 0:02:00]} Nxg3 {[%emt 0:00:30]} 11. hxg3 {[%emt 0:00:30]} g6 {[%emt 0:01:30]} 12. Qf3 {[%emt 0:01:30]} Be6 {[%emt 0:01:30]} 13. Bh6 {[%emt 0:04:30]} Rg8 {[%emt 0:01:30]} 14. Nd2 {[%emt 0:01:30]} Qb6 {[%emt 0:01:30]} 15. Rb1 {[%emt 0:09:30]} f5 {[%emt 0:04:30]} 16. Kf1 {[%emt 0:10:30]} O-O-O {[%emt 0:05:30]} 17. Bg5 {[%emt 0:02:30]} Rd7 {[%emt 0:01:30]} 18. b3 {[%emt 0:00:30]} cxb3 {[%emt 0:01:30]} 19. Bxb3 {[%emt 0:00:30]} Na5 {[%emt 0:01:30]} 20. Ba4 {[%emt 0:05:30]} Qc7 {[%emt 0:05:30]} 21. Bxd7+ {[%emt 0:00:30]} Qxd7 {[%emt 0:00:30]} 22. Qd3 {[%emt 0:04:30]} a6 {[%emt 0:00:30]} 23. f4 {[%emt 0:07:30]} h5 {[%emt 0:03:30]} 24. Nf3 {[%emt 0:00:30]} Qa4 {[%emt 0:00:30]} 25. Qe2 {[%emt 0:03:30]} Bd7 {[%emt 0:00:30]} 26. Kf2 {[%emt 0:00:30]} Re8 {[%emt 0:00:30]} 27. Ne5 {[%emt 0:00:30]} Bb5 {[%emt 0:01:30]} 28. Qb2 {[%emt 0:01:30]} Ba3 {[%emt 0:02:30]} 29. Qd2 {[%emt 0:01:30]} Nc4 {[%emt 0:01:30]} 30. Nxc4 {[%emt 0:01:30]} Qxc4 {[%emt 0:00:30]} 31. Rhe1 {[%emt 0:00:00]} Re4 {[%emt 0:01:30]} 32. Kg1 {[%emt 0:03:00]} Kd7 {[%emt 0:04:30]} 33. Kh2 {[%emt 0:03:30]} Qc7 {[%emt 0:05:30]} 34. Rb3 {[%emt 0:05:30]} Qa5 {[%emt 0:01:30]} 35. Rxe4 {[%emt 0:07:30]} dxe4 {[%emt 0:00:30]} 36. Qe3 {[%emt 0:03:11]} Bc6 {[%emt 0:01:30]} 37. c4 {[%emt 0:02:38]} Bb4 {[%emt 0:00:30]} 38. Rb2 {[%emt 0:06:12]} Bc3 {[%emt 0:01:30]} 39. Rc2 {[%emt 0:00:59]} Bb4 {[%emt 0:00:30]} 40. d5 {[%emt 0:00:20]} Ba4 {[%emt 0:01:30]} 41. Rb2 {[%emt 0:04:52]} Bc5 {[%emt 0:01:30]} 42. Qc1 {[%emt 0:01:30]} b6 {[%emt 0:00:30]} 43. Re2 {[%emt 0:00:44]} b5 {[%emt 0:08:30]} 44. Qa1 {[%emt 0:01:39]} Bf8 {[%emt 0:01:30]} 45. Qf6 {[%emt 0:01:03]} bxc4 {[%emt 0:11:30]} 46. Qxf8 {[%emt 0:00:47]} Qxd5 {[%emt 0:02:30]} 47. Qd8+ {[%emt 0:00:22]} Kc6 {[%emt 0:00:30]} 48. Qxd5+ {[%emt 0:00:38]} Kxd5 {[%emt 0:00:30]} 49. Bf6 {[%emt 0:00:00]} Bb5 {[%emt 0:00:00]} 50. Rd2+ {[%emt 0:00:41]} Kc5 {[%emt 0:00:00]} 51. a3 {[%emt 0:00:17]} e3 {[%emt 0:01:30]} 52. Bd4+ {[%emt 0:00:17]} Kd5 {[%emt 0:00:30]} 53. Bxe3+ {[%emt 0:00:37]} Ke4 {[%emt 0:00:30]} 54. Bd4 {[%emt 0:00:16]} Kd5 {[%emt 0:01:30]} 55. Bc3+ {[%emt 0:00:49]} Kc5 {[%emt 0:00:30]} 56. Bb4+ {[%emt 0:00:00]} Kc6 {[%emt 0:00:30]} 57. Rd6+ {[%emt 0:00:00]} Kb7 {[%emt 0:00:30]} 58. Rxg6 {[%emt 0:00:03]} 1-0

[Event "Turkish Club Cup 2019"]
[Site "Konya"]
[Date "2019.07.17"]
[Round "3"]
[White "Koca, Yildiray"]
[Black "Yasin, Hur"]
[Result "0-1"]
[ECO "B28"]
[WhiteElo "1418"]
[BlackElo "1953"]
[Annotator "NA"]
[PlyCount "62"]
[EventDate "2019.07.16"]
[EventType "team-tourn"]
[EventCountry "TUR"]
[SourceTitle "playchess.com"]
[Source "ChessBase"]
[SourceQuality "1"]
[TimeControl "5400+30"]

1. e4 c5 2. Nf3 a6 3. d4 cxd4 4. Nxd4 Nf6 5. Nc3 e5 6. Nf3 Bb4 7. Bc4 Qc7 8. Qd3 b5 9. Bd5 Nxd5 10. exd5 d6 11. O-O Nd7 12. Ne4 h6 13. c3 Ba5 14. Be3 O-O 15. Qd2 f5 16. Bxh6 fxe4 17. Ng5 Nf6 18. Ne6 Bxe6 19. dxe6 gxh6 20. Qxh6 Rae8 21. f4 exf4 22. Rxf4 Qg7 23. Qh3 Bb6+ 24. Kh1 Re7 25. Raf1 Nh7 26. Rxf8+ Nxf8 27. Rf4 Qe5 {[%emt 0:54:30]} 28. Rf5 {[%emt 0:55:00]} Qxe6 {[%emt 0:00:30]} 29. Qg4+ {[%emt 0:00:30]} Ng6 {[%emt 0:00:30]} 30. h4 {[%emt 0:00:30]} e3 {[%emt 0:12:30]} 31. h5 {[%emt 0:01:30]} e2 {[%emt 0:05:30]} 0-1

[Event "Turkish Club Cup 2019"]
[Site "Konya"]
[Date "2019.07.17"]
[Round "3"]
[White "Kiziltas, Ece Su"]
[Black "Zeybek, Merve"]
[Result "1-0"]
[ECO "D11"]
[WhiteElo "1400"]
[BlackElo "1121"]
[Annotator "NA"]
[PlyCount "47"]
[EventDate "2019.07.16"]
[EventType "team-tourn"]
[EventCountry "TUR"]
[SourceTitle "playchess.com"]
[Source "ChessBase"]
[SourceQuality "1"]
[TimeControl "5400+30"]

1. d4 {[%emt 0:00:30]} d5 {[%emt 0:00:30]} 2. Nf3 {[%emt 0:00:00]} Nf6 {[%emt 0:01:30]} 3. g3 {[%emt 0:01:00]} Bf5 {[%emt 0:00:30]} 4. Bg2 {[%emt 0:00:30]} e6 {[%emt 0:00:30]} 5. O-O {[%emt 0:00:30]} Be7 {[%emt 0:00:30]} 6. c4 {[%emt 0:00:00]} c6 {[%emt 0:00:30]} 7. Nc3 {[%emt 0:01:00]} O-O {[%emt 0:01:30]} 8. b3 {[%emt 0:02:30]} Nbd7 {[%emt 0:02:30]} 9. Bb2 {[%emt 0:02:30]} Re8 {[%emt 0:04:30]} 10. Nh4 {[%emt 0:02:30]} Bg6 {[%emt 0:05:30]} 11. Nxg6 {[%emt 0:00:30]} hxg6 {[%emt 0:01:30]} 12. e4 {[%emt 0:09:30]} Nb6 {[%emt 0:04:30]} 13. c5 {[%emt 0:02:30]} Nc8 {[%emt 0:00:30]} 14. e5 {[%emt 0:00:30]} Nd7 {[%emt 0:01:30]} 15. h4 {[%emt 0:04:30]} f6 {[%emt 0:00:30]} 16. f4 {[%emt 0:03:30]} Kf7 {[%emt 0:04:30]} 17. h5 {[%emt 0:01:30]} gxh5 {[%emt 0:00:30]} 18. Qxh5+ {[%emt 0:00:30]} Kf8 {[%emt 0:01:30]} 19. f5 {[%emt 0:01:30]} Bxc5 {[%emt 0:02:30]} 20. dxc5 {[%emt 0:04:30]} Nxe5 {[%emt 0:01:30]} 21. fxe6 {[%emt 0:01:30]} Rxe6 {[%emt 0:00:30]} 22. Qh8+ {[%emt 0:00:30]} Ke7 {[%emt 0:01:30]} 23. Qxg7+ {[%emt 0:00:30]} Nf7 {[%emt 0:00:30]} 24. Rae1 {[%emt 0:00:30]} 1-0

[Event "Turkish Club Cup 2019"]
[Site "Konya"]
[Date "2019.07.17"]
[Round "3"]
[White "Demir, Aleyna"]
[Black "Acar, Selen"]
[Result "1-0"]
[ECO "B70"]
[WhiteElo "1354"]
[BlackElo "1283"]
[Annotator "NA"]
[PlyCount "109"]
[EventDate "2019.07.16"]
[EventType "team-tourn"]
[EventCountry "TUR"]
[SourceTitle "playchess.com"]
[Source "ChessBase"]
[SourceQuality "1"]
[TimeControl "5400+30"]

1. e4 c5 2. Nf3 d6 3. Bb5+ Bd7 4. Bxd7+ Qxd7 5. d4 cxd4 6. Nxd4 Nf6 7. Nc3 g6 8. O-O Bg7 9. Kh1 O-O 10. f3 Nc6 11. Be3 Ne5 12. Bf2 Rac8 13. Qe2 Nh5 14. Nd5 e6 15. Ne3 a6 16. Qd2 Nc4 17. Nxc4 Rxc4 18. c3 d5 19. Nb3 Nf6 20. Rad1 Qc7 21. Bg3 Qc8 22. exd5 Nxd5 23. Qe2 Nf4 24. Bxf4 Rxf4 25. Qd2 Rh4 26. Qg5 Rh5 27. Qe7 Re8 28. Qd7 Be5 29. f4 Bc7 30. Qxc8 Rxc8 31. g3 g5 32. Rd3 gxf4 33. gxf4 Rf5 34. Rdf3 Kh8 35. Nd4 Rh5 36. Ne2 Rd8 37. Ng3 Rh6 38. R3f2 Rd3 39. Ne4 Re3 40. Ng5 Rf6 41. Rf3 Rxf3 42. Rxf3 Bxf4 43. Ne4 Rf5 44. Rh3 b5 45. b4 e5 46. Nc5 Rf6 47. Ne4 Rc6 48. Kg2 f5 49. Nc5 Rg6+ 50. Kf2 Kg8 51. Rh5 Rf6 52. Nd3 Rh6 53. Nxf4 Rxh5 54. Nxh5 Kf7 55. Kf3 1-0